[Event "CCT Chesscom Classic-D2 2024"]
[Site "Online"]
[Date "2024.05.11"]
[Round "2"]
[White "Esipenko, Andrey"]
[Black "Oparin, Grigoriy"]
[Result "1/2-1/2"]
[ECO "B58"]
[WhiteElo "2704"]
[BlackElo "2676"]
[Annotator "TA"]
[PlyCount "199"]
[EventDate "2024.05.08"]
[EventType "k.o."]
[EventCountry "NET"]
[SourceTitle "playchess.com"]
[Source "ChessBase"]
[SourceQuality "1"]
[TimeControl "600+2"]

{[%evp 27,199,0,11,0,30,31,27,12,22,16,21,0,0,0,0,0,33,26,55,48,74,0,0,-21,-21,-17,-27,-18,-26,-22,-20,-19,-15,-25,-8,-20,-18,-24,-8,-8,-8,-24,-2,-6,0,-24,-24,-24,-24,-24,-24,-24,-24,-88,-24,-24,-24,-24,-24,-24,-24,-24,-7,-24,0,-24,-6,-24,-24,-24,0,-24,0,-24,-24,-24,-24,-24,-24,-24,0,0,0,-24,-24,-24,0,-24,-4,-24,0,-1,-3,-4,-4,-4,-4,-4,0,-8,-4,-4,0,-4,-4,-4,0,-4,-4,-4,0,-4,-4,-4,-4,-4,-4,-4,-4,-4,-4,-4,0,-4,-4,-68,-4,-4,-4,-4,-4,-4,-4,-4,-4,-4,0,-4,-4,-4,-4,-13,-4,-4,0,-4,0,0,0,0,0,0,0,-8,0,0,0,0,0,0,0,0,0,0,0,0,0,0,0,0,0,0,0,0]} 1. e4 {[%emt 0:00:04]} c5 {[%emt 0:00:03]} 2. Nf3 {[%emt 0:00:01]} d6 {[%emt 0:00:02]} 3. d4 {[%emt 0:00:03]} cxd4 {[%emt 0:00:00]} 4. Nxd4 {[%emt 0:00:01]} Nf6 {[%emt 0:00:00]} 5. Nc3 {[%emt 0:00:01]} Nc6 {[%emt 0:00:00]} 6. Be2 {[%emt 0:00:02]} e5 {[%emt 0:00:02]} 7. Nf3 {[%emt 0:00:02]} h6 {[%emt 0:00:08]} 8. O-O {[%emt 0:00:03]} Be7 {[%emt 0:00:01]} 9. Re1 {[%emt 0:00:01]} O-O {[%emt 0:00:04]} 10. h3 {[%emt 0:00:00]} Be6 {[%emt 0:00:10]} 11. Bf1 {[%emt 0:00:02]} Qa5 {[%emt 0:00:37]} 12. Bd2 {[%emt 0:00:20]} Qd8 {[%emt 0:00:08]} 13. Bc1 {[%emt 0:00:36]} Qa5 {[%emt 0:00:01]} 14. a3 {[%emt 0:00:01]} Rfc8 {[%emt 0:00:10]} 15. Be3 {[%emt 0:00:57]} d5 {[%emt 0:01:34]} 16. b4 {[%emt 0:00:13]} Qd8 {[%emt 0:00:06]} 17. exd5 {[%emt 0:00:06] White has an edge.} Nxd5 {[%emt 0:00:08]} 18. Nxd5 {[%emt 0:00:03]} Qxd5 {[%emt 0:00:23]} 19. Nd2 {[%emt 0:04:03]} Nd4 {[%emt 0:00:30]} 20. c4 {[%emt 0:01:32]} Qd7 {[%emt 0:00:04]} 21. Bxd4 {[%emt 0:00:04]} Qxd4 {[%emt 0:00:04]} 22. Nf3 {[%emt 0:00:10][%csl LRd4,LRe5]} Qf4 {[%emt 0:00:32]} 23. Nxe5 {[%emt 0:00:20][%cal Oe5g6]} a5 {[%emt 0:00:07]} 24. g3 {[%emt 0:00:08]} ({Better is} 24. Ng6 $1 $16 {[%cal Rg6f4]} Qg5 25. Nxe7+ Qxe7 26. c5) 24... Qf5 $11 {[%emt 0:00:36]} 25. Qb1 {[%emt 0:00:45]} axb4 {[%emt 0:00:14]} 26. Qxf5 {[%emt 0:00:19]} Bxf5 {[%emt 0:00:01] A strong pair of Bishops.} 27. axb4 {[%emt 0:00:05]} Bxb4 {[%emt 0:00:04]} 28. Rxa8 {[%emt 0:00:02]} Rxa8 {[%emt 0:00:01]} 29. Rd1 {[%emt 0:00:02]} Bc5 {[%emt 0:00:58]} 30. Nd3 {[%emt 0:00:31]} Bxd3 {[%emt 0:00:10]} 31. Rxd3 {[%emt 0:00:02][%mdl 4096] Endgame. KRB-KRB} Ra2 {[%emt 0:00:03]} 32. Rf3 {[%emt 0:00:01]} Rd2 {[%emt 0:00:08]} 33. h4 {[%emt 0:00:04]} g6 {[%emt 0:00:06]} 34. Bh3 {[%emt 0:00:02]} Rd8 {[%emt 0:00:28]} 35. Bf1 {[%emt 0:00:04]} Rd2 {[%emt 0:00:22]} 36. Bh3 {[%emt 0:00:02]} h5 {[%emt 0:00:03]} 37. Bc8 {[%emt 0:00:02]} b6 {[%emt 0:00:02]} 38. Bb7 {[%emt 0:00:06]} Kg7 {[%emt 0:00:02]} 39. Bd5 {[%emt 0:00:03]} f5 {[%emt 0:00:01][%cal Ob6b5] Black wants to play ...b5!} 40. Kf1 {[%emt 0:00:02]} (40. Bc6 $11 {keeps the balance.}) 40... Kf6 {[%emt 0:00:04]} (40... b5 $1 $17 {aiming for ...b4.} 41. Rb3 (41. Ke1 Rd4 $17) 41... b4 (41... Rxf2+ 42. Ke1 $17)) 41. Bc6 {[%emt 0:00:02]} Rb2 {[%emt 0:00:28]} 42. Bd5 {[%emt 0:00:02]} Rc2 {[%emt 0:00:02]} 43. Kg2 {[%emt 0:00:02]} Rd2 {[%emt 0:00:04][%cal Ob6b5]} 44. Bc6 {[%emt 0:00:01]} Rd6 {[%emt 0:00:22]} 45. Bb5 {[%emt 0:00:03]} Ke5 {[%emt 0:00:11]} 46. Kf1 {[%emt 0:00:01]} Rd8 {[%emt 0:00:13]} 47. Kg2 {[%emt 0:00:01]} Ra8 {[%emt 0:00:47]} 48. Kf1 {[%emt 0:00:02]} Bd4 {[%emt 0:00:14]} 49. Kg2 {[%emt 0:00:02]} Bc5 {[%emt 0:00:07]} 50. Kf1 {[%emt 0:00:01]} Ke6 {[%emt 0:00:02]} 51. Kg2 {[%emt 0:00:02]} Ke7 {[%emt 0:00:00]} 52. Kf1 {[%emt 0:00:01]} Ra2 {[%emt 0:00:03]} 53. Kg2 {[%emt 0:00:01]} Ra1 {[%emt 0:00:01]} 54. Rd3 {[%emt 0:00:02]} Ra2 {[%emt 0:00:01]} 55. Rf3 {[%emt 0:00:01]} Rd2 {[%emt 0:00:02]} 56. Kf1 {[%emt 0:00:01]} Kf6 {[%emt 0:00:07]} 57. Kg2 {[%emt 0:00:01]} Bd6 {[%emt 0:00:09]} 58. Bc6 {[%emt 0:00:07]} g5 {[%emt 0:00:15] [#] And now ...g4 would win.} 59. hxg5+ {[%emt 0:00:02]} Kxg5 {[%emt 0:00:01]} 60. Bd7 {[%emt 0:00:04]} f4 {[%emt 0:00:02]} 61. gxf4+ {[%emt 0:00:03]} Bxf4 {[%emt 0:00:00]} 62. Bc6 {[%emt 0:00:02]} Rd4 {[%emt 0:00:06]} 63. Bb5 {[%emt 0:00:02]} h4 {[%emt 0:00:04]} 64. Ba6 {[%emt 0:00:01]} Kf6 {[%emt 0:00:08]} 65. Bb5 {[%emt 0:00:02]} Ke5 {[%emt 0:00:00]} 66. Ba6 {[%emt 0:00:01]} Kf6 {[%emt 0:00:06]} 67. Bb5 {[%emt 0:00:01]} Kf5 {[%emt 0:00:01]} 68. Ba6 {[%emt 0:00:01]} Kg5 {[%emt 0:00:00]} 69. Bb5 {[%emt 0:00:02]} Be5 {[%emt 0:00:01]} 70. Ba6 {[%emt 0:00:02]} Rg4+ {[%emt 0:00:02]} 71. Kh1 {[%emt 0:00:07]} Re4 {[%emt 0:00:07]} 72. Kg2 {[%emt 0:00:01]} Rd4 {[%emt 0:00:01]} 73. Bb5 {[%emt 0:00:02]} Rd2 {[%emt 0:00:06]} 74. Ba6 {[%emt 0:00:02]} Bd4 {[%emt 0:00:03]} 75. Bb5 {[%emt 0:00:00]} Bc5 {[%emt 0:00:01]} 76. Bc6 {[%emt 0:00:04]} (76. Ba6 $11) 76... Rd4 {[%emt 0:00:03]} (76... Kg4 $1 $15) 77. Bb5 {[%emt 0:00:03] The position is equal.} Rg4+ {[%emt 0:00:01]} 78. Kh1 {[%emt 0:00:01]} Re4 {[%emt 0:00:02]} 79. Kg2 {[%emt 0:00:01]} Re7 {[%emt 0:00:01]} 80. Kh3 {[%emt 0:00:03]} Re2 {[%emt 0:00:04]} 81. Kg2 $1 {[%emt 0:00:06]} Rd2 {[%emt 0:00:03]} 82. Ba6 {[%emt 0:00:01]} Ra2 {[%emt 0:00:02]} 83. Bb5 {[%emt 0:00:01]} Rc2 {[%emt 0:00:02]} 84. Ba6 {[%emt 0:00:01]} Rd2 {[%emt 0:00:01]} 85. Rf7 {[%emt 0:00:06]} Kg6 {[%emt 0:00:06]} 86. Rf3 {[%emt 0:00:01]} Kh5 {[%emt 0:00:01]} 87. Rf5+ {[%emt 0:00:04]} Kg4 {[%emt 0:00:04] [#] ( -> ...h3+)} 88. Bc8 {[%emt 0:00:07]} h3+ {[%emt 0:00:01]} 89. Kf1 $1 {[%emt 0:00:02]} Kh4 {[%emt 0:00:05] ...Rd1+ would now be deadly.} 90. Rf7 {[%emt 0:00:03]} h2 {[%emt 0:00:05][%cal Rh2h1]} 91. Rh7+ {[%emt 0:00:02]} Kg5 {[%emt 0:00:01]} 92. Rxh2 {[%emt 0:00:00][%cal Of2f4] Black must now prevent f4+!} Kf4 {[%emt 0:00:03]} 93. Ba6 {[%emt 0:00:04]} Kf3 {[%emt 0:00:03][%cal Rd2d1]} 94. Bb7+ {[%emt 0:00:01]} Kf4 {[%emt 0:00:01]} 95. Bc6 {[%emt 0:00:03]} Rc2 {[%emt 0:00:01]} 96. Bb5 {[%emt 0:00:02]} Rd2 {[%emt 0:00:02]} 97. Ke1 {[%emt 0:00:02]} Rc2 {[%emt 0:00:01]} 98. Kf1 {[%emt 0:00:01]} Rd2 {[%emt 0:00:01]} 99. Ke1 {[%emt 0:00:00]} Rc2 {[%emt 0:00:00]} 100. Kf1 {[%emt 0:00:01] Weighted Error Value: White=0.09 (flawless) /Black=0.12 (very precise) .  Mistake:       	White=3     	Black=2      Inaccurate:     	---       	Black=4      OK:         	White=30    	Black=16     Best:        	White=5     	Black=2      Strong:       	White=2     	---} 1/2-1/2

[Event "CCT Chesscom Classic-D2 2024"]
[Site "Online"]
[Date "2024.05.11"]
[Round "2"]
[White "Oparin, Grigoriy"]
[Black "Esipenko, Andrey"]
[Result "1-0"]
[ECO "C55"]
[WhiteElo "2676"]
[BlackElo "2704"]
[Annotator "TA"]
[PlyCount "161"]
[EventDate "2024.05.08"]
[EventType "k.o."]
[EventCountry "NET"]
[SourceTitle "playchess.com"]
[Source "ChessBase"]
[SourceQuality "1"]
[TimeControl "600+2"]

{[%evp 13,161,27,30,9,6,3,6,4,8,0,16,0,0,-18,0,15,29,-16,-15,-28,-18,-41,0,0,0,-33,0,-5,40,30,44,46,43,43,64,61,53,43,75,75,75,42,44,37,37,15,22,18,41,18,23,16,21,16,21,14,22,7,38,57,70,34,41,-33,22,22,28,29,29,29,29,8,29,8,29,18,29,6,11,-32,-32,-32,-32,-32,-17,-32,0,-32,0,-32,-32,-32,-32,-32,0,-32,0,-32,-32,-32,0,-29,15,-15,41,0,11,0,0,0,0,-25,0,-25,-25,-25,-16,-97,0,-87,-87,-87,-88,-88,-56,-62,0,7,0,0,97,97,95,97,100,102,108,108,108,108,108,108,122,108,157,146,158,135,132,130]} 1. e4 {[%emt 0:00:04]} e5 {[%emt 0:02:36]} 2. Nf3 {[%emt 0:00:03]} Nc6 {[%emt 0:00:03]} 3. Bc4 {[%emt 0:00:03]} Nf6 {[%emt 0:00:03]} 4. d3 {[%emt 0:00:02]} Be7 {[%emt 0:00:03]} 5. O-O {[%emt 0:00:04]} O-O {[%emt 0:00:04]} 6. Re1 {[%emt 0:00:14]} d6 {[%emt 0:00:08]} 7. a4 {[%emt 0:00:03]} Be6 {[%emt 0:00:09]} 8. Nc3 {[%emt 0:00:03]} Bxc4 {[%emt 0:00:05]} 9. dxc4 {[%emt 0:00:03]} a5 {[%emt 0:00:04]} 10. Nd5 {[%emt 0:00:05] The position is equal.} b6 {[%emt 0:00:09]} 11. Ra3 {[%emt 0:00:13]} Nb8 {[%emt 0:00:07]} 12. h3 {[%emt 0:00:37]} Nbd7 {[%emt 0:00:04]} 13. Rae3 {[%emt 0:00:02]} h6 {[%emt 0:00:14]} 14. b3 {[%emt 0:00:13]} Nxd5 {[%emt 0:00:46]} 15. Qxd5 {[%emt 0:00:04]} Nc5 {[%emt 0:00:10]} 16. R3e2 {[%emt 0:00:43]} Ne6 {[%emt 0:00:05]} 17. g3 {[%emt 0:00:08]} Qc8 {[%emt 0:00:11]} 18. h4 {[%emt 0:00:05]} Rd8 {[%emt 0:00:05]} 19. Rd1 {[%emt 0:00:05]} Bf6 {[%emt 0:00:08][%cal Oe6f4]} 20. Kg2 {[%emt 0:00:15]} c6 {[%emt 0:00:17]} 21. Qd3 {[%emt 0:00:06]} Nc5 {[%emt 0:00:11]} 22. Qe3 {[%emt 0:00:05]} Qb7 {[%emt 0:00:24]} 23. Ba3 {[%emt 0:00:07]} Be7 {[%emt 0:00:07]} 24. Red2 {[%emt 0:00:07]} Qc7 {[%emt 0:00:02]} 25. Nh2 {[%emt 0:00:55]} Rd7 {[%emt 0:00:04]} 26. Qf3 {[%emt 0:00:14]} Rad8 {[%emt 0:00:05]} 27. Ng4 {[%emt 0:00:06]} h5 {[%emt 0:00:21]} 28. Nh2 {[%emt 0:00:23][%cal Oa3c5] Hoping for Bxc5!} g6 {[%emt 0:00:03]} 29. Qe3 {[%emt 0:00:07]} Ne6 {[%emt 0:00:09]} 30. Nf3 {[%emt 0:00:04]} Bf6 {[%emt 0:00:09]} 31. Bb2 {[%emt 0:00:05]} Qb7 {[%emt 0:00:11]} 32. Qe2 {[%emt 0:00:06]} Qc7 {[%emt 0:00:05]} 33. Qe1 {[%emt 0:00:03]} Qb7 {[%emt 0:00:04]} 34. Qe3 {[%emt 0:00:02]} Qc7 {[%emt 0:00:05]} 35. Ba3 {[%emt 0:00:06]} Qb8 {[%emt 0:00:09]} 36. Rd3 {[%emt 0:00:06]} Qc7 {[%emt 0:00:04]} 37. Qe2 {[%emt 0:00:09] White is more active.} Bg7 {[%emt 0:00:12]} 38. Ng5 {[%emt 0:00:08]} (38. Qd2 $14 c5 39. Ng5) 38... Nc5 {[%emt 0:00:10]} (38... Nd4 $15 39. Qd2 d5) 39. Bxc5 {[%emt 0:00:08]} dxc5 {[%emt 0:00:05]} 40. Nf3 {[%emt 0:00:09][%cal Bg5f3,Bf3h2,Bh2f1][%mdl 32]} Bf6 {[%emt 0:00:03]} 41. Nh2 {[%emt 0:00:03]} Kg7 {[%emt 0:00:04]} 42. Nf1 {[%emt 0:00:03]} Rd6 {[%emt 0:00:04]} 43. Qf3 {[%emt 0:00:05]} R8d7 {[%emt 0:00:03]} 44. Qe3 {[%emt 0:00:08]} Qd8 {[%emt 0:00:03]} 45. Qe2 {[%emt 0:00:03]} Rxd3 {[%emt 0:00:04]} 46. cxd3 {[%emt 0:00:07]} Rd6 {[%emt 0:00:03]} 47. Qe3 {[%emt 0:00:03]} Qd7 {[%emt 0:00:03][%cal Of6h4]} 48. Nh2 {[%emt 0:00:03]} Be7 {[%emt 0:00:03]} 49. Qf3 {[%emt 0:00:05]} Bf6 {[%emt 0:00:04]} 50. Rd2 {[%emt 0:00:07]} Be7 {[%emt 0:00:03]} 51. Nf1 {[%emt 0:00:04]} Qe6 {[%emt 0:00:04]} 52. Qe2 {[%emt 0:00:05]} Bf6 {[%emt 0:00:03]} 53. Ne3 {[%emt 0:00:02]} Be7 {[%emt 0:00:02]} 54. Rd1 {[%emt 0:00:04]} Bf6 {[%emt 0:00:03]} 55. Kf1 {[%emt 0:00:02][%cal Bg2f1,Bf1e1,Be1d2,Bd2c2][%mdl 32]} Qh3+ {[%emt 0:00:03]} 56. Ke1 {[%emt 0:00:03]} Qe6 {[%emt 0:00:10]} 57. Kd2 {[%emt 0:00:03]} Qd7 {[%emt 0:00:03]} 58. Kc2 {[%emt 0:00:02]} Kf8 {[%emt 0:00:03]} (58... Qh3 $11) 59. Qf3 {[%emt 0:00:04]} Ke8 {[%emt 0:00:04][%cal Bf8e8,Be8d8,Bd8c7,Bc7b7][%mdl 32]} 60. Qe2 {[%emt 0:00:13]} Kd8 {[%emt 0:00:04]} 61. Rh1 {[%emt 0:00:03]} Kc7 {[%emt 0:00:05]} 62. Nd1 {[%emt 0:00:05]} Kb7 {[%emt 0:00:03]} 63. Qe3 {[%emt 0:00:06]} Bg7 {[%emt 0:00:04]} 64. Re1 {[%emt 0:00:04]} f5 {[%emt 0:00:06]} 65. f3 {[%emt 0:00:09]} (65. Qf3 $11) 65... Qf7 {[%emt 0:00:03]} (65... f4 $1 $17 {[%cal Rf4e3]} 66. gxf4 Bh6) 66. Rf1 {[%emt 0:00:22] [#]} (66. exf5 $11 {remains equal.} gxf5 67. f4) 66... f4 $1 $17 {[%emt 0:00:04]} 67. Qg1 {[%emt 0:00:04]} fxg3 {[%emt 0:00:05]} 68. Qxg3 {[%emt 0:00:03]} Bf6 {[%emt 0:00:07]} 69. Nf2 {[%emt 0:00:34]} Qd7 {[%emt 0:00:07]} (69... Rd8 $15) 70. Qxg6 $11 {[%emt 0:00:14]} Bxh4 {[%emt 0:00:05]} (70... Qd8 {with more complications.} 71. Qf7+ Rd7 72. Qxh5 Bxh4 73. Qxe5 Bxf2 74. Rxf2 Rxd3 75. f4 Rd1) 71. Qxh5 {[%emt 0:00:03]} Bg3 {[%emt 0:00:18] [#]} (71... Bxf2 $11 72. Rxf2 Rxd3 73. Qxe5 Rd1) 72. Qg4 $1 $16 {[%emt 0:00:10]} Bf4 {[%emt 0:00:15][%cal Bg3f4,Bf4e3,Be3d4][%mdl 32]} 73. Qxd7+ {[%emt 0:00:04]} Rxd7 {[%emt 0:00:02][%mdl 4096] Endgame. KRB-KRN} 74. Rh1 {[%emt 0:00:02]} Be3 {[%emt 0:00:05]} 75. Ng4 {[%emt 0:00:03][%csl LRe3,LRe5]} Bd4 {[%emt 0:00:04]} 76. Kd2 {[%emt 0:00:04]} Rf7 {[%emt 0:00:04]} 77. Ke2 {[%emt 0:00:03]} b5 {[%emt 0:00:05]} 78. Rh5 {[%emt 0:00:09]} (78. axb5 cxb5 79. cxb5 Kb6 $14) 78... Re7 {[%emt 0:00:04]} (78... Rg7 $142 79. cxb5 (79. axb5 cxb5 80. cxb5 Kb6 $11) 79... cxb5) 79. cxb5 {[%emt 0:00:11] White is clearly better.} ({Don't do} 79. axb5 cxb5 80. cxb5 Kb6 $14) 79... cxb5 {[%emt 0:00:03]} 80. Nf6 {[%emt 0:00:02]} ({Don't take} 80. axb5 $6 Kb6 $14) 80... bxa4 {[%emt 0:00:08]} 81. bxa4 {[%emt 0:00:04] Weighted Error Value: White=0.16 (very precise) /Black=0.15 (very precise) .  Mistake:       	White=3     	Black=6      Inaccurate:     	White=12    	Black=12     OK:         	White=18    	Black=20     Best:        	White=1     	Black=1      Strong:       	White=1     	Black=1} 1-0

[Event "CCT Chesscom Classic-D2 2024"]
[Site "Online"]
[Date "2024.05.11"]
[Round "2"]
[White "Kollars, Dmitrij"]
[Black "LevonAronian"]
[Result "0-1"]
[ECO "D32"]
[WhiteElo "2648"]
[BlackElo "2746"]
[Annotator "TA"]
[PlyCount "78"]
[EventDate "2024.05.08"]
[EventType "k.o."]
[EventCountry "NET"]
[SourceTitle "playchess.com"]
[Source "ChessBase"]
[SourceQuality "1"]
[TimeControl "600+2"]

{[%evp 22,78,27,14,28,28,23,-37,-49,-46,-56,-38,-15,-18,-25,-31,-30,-26,-25,-19,-19,-30,-18,-19,-12,-10,-5,-27,-22,-22,-5,-19,-33,-35,-15,-15,-13,-2,-12,-8,-13,-354,-341,-349,-349,-835,-760,-1408,-1781,-1610,-1637,-1596,-1450,-5184,-1575,-1741,-1629,-5410,-5297]} 1. e3 {[%emt 0:00:42]} Nf6 {[%emt 0:00:07]} 2. Nf3 {[%emt 0:00:05]} d5 {[%emt 0:00:02]} 3. c4 {[%emt 0:00:04]} e6 {[%emt 0:00:01]} 4. Nc3 {[%emt 0:00:07]} Bd6 {[%emt 0:00:02]} 5. b3 {[%emt 0:00:08]} O-O {[%emt 0:00:01]} 6. Bb2 {[%emt 0:00:01]} c5 {[%emt 0:00:01]} 7. cxd5 {[%emt 0:00:08]} exd5 {[%emt 0:00:01]} 8. d4 {[%emt 0:00:01]} cxd4 {[%emt 0:00:05]} 9. Nxd4 {[%emt 0:00:02]} Nc6 {[%emt 0:00:01]} 10. Be2 {[%emt 0:00:16]} Re8 {[%emt 0:00:02]} 11. O-O {[%emt 0:00:05]} Nxd4 {[%emt 0:00:01]} 12. Qxd4 {[%emt 0:00:00]} Be5 {[%emt 0:00:00]} 13. Qd3 {[%emt 0:01:02]} Ne4 {[%emt 0:00:46]} 14. Rac1 {[%emt 0:00:37]} (14. Nxe4 $11 Bxb2 15. Rad1 (15. Rab1 dxe4 16. Qxd8 Rxd8 $11)) 14... Bf5 $15 {[%emt 0:00:11] Black is slightly better.} 15. Qd1 {[%emt 0:01:02]} Re6 {[%emt 0:03:03]} 16. f4 {[%emt 0:00:52]} Bf6 {[%emt 0:00:09] next ...Nxc3 is good for Black.} 17. Bf3 $1 {[%emt 0:00:57]} h6 {[%emt 0:01:22]} 18. Na4 {[%emt 0:00:54]} Bxb2 {[%emt 0:01:18]} 19. Nxb2 {[%emt 0:00:01]} Nf6 {[%emt 0:00:32]} 20. Qd4 {[%emt 0:00:12]} Qe7 {[%emt 0:00:11]} 21. Rfe1 {[%emt 0:00:39][%cal Ob2a4]} Re8 {[%emt 0:00:02][%cal Re6e3]} 22. Qxa7 {[%emt 0:00:36]} Ra6 {[%emt 0:00:10]} 23. Qd4 {[%emt 0:00:01]} Rxa2 {[%emt 0:00:01]} 24. Na4 {[%emt 0:00:04][%cal Oa4c3]} Be4 {[%emt 0:00:28]} 25. Nc3 {[%emt 0:00:05][%csl LRa2,LRd5]} Ra3 {[%emt 0:00:23]} 26. Bxe4 {[%emt 0:00:22]} dxe4 {[%emt 0:00:00]} 27. Qc4 {[%emt 0:00:33]} Ra6 {[%emt 0:00:08]} 28. Red1 {[%emt 0:00:17]} Rc6 {[%emt 0:00:06]} 29. Nd5 $1 {[%emt 0:00:06]} Qa3 {[%emt 0:00:34]} 30. Nxf6+ {[%emt 0:00:08]} gxf6 {[%emt 0:00:00]} 31. Qb5 {[%emt 0:00:12][%mdl 8192] White does not recover from this.} (31. Qf1 $11 {and White is okay.}) 31... Rxc1 $19 {[%emt 0:00:13]} ({And not} 31... Qxc1 32. Rxc1 Rxc1+ 33. Kf2 $11) 32. Qxe8+ {[%emt 0:00:02][%mdl 4096] Endgame. KQR-KQR} Kg7 {[%emt 0:00:01]} 33. Qd7 {[%emt 0:00:01] [#]} (33. Rf1 Rxf1+ 34. Kxf1 Qc1+ (34... Qxb3 $2 35. Qxe4 b5 36. g4 $17) 35. Ke2 Qc2+ 36. Kf1 Qd3+ (36... Qxb3 $2 37. Qxe4 b5 38. g4 $19) 37. Kf2 Qd2+ (37... Qxb3 38. Qxe4 b5 39. Qf5 $17) 38. Kf1 Qxe3 39. Qd7 Qxf4+ (39... Qxb3 $2 40. Qg4+ Kf8 41. Qc8+ Ke7 42. Qc5+ Ke6 43. Qc8+ Kd5 44. Qd7+ Kc5 45. Qe7+ Kd4 46. h3 $19) 40. Ke2) 33... Qxb3 $1 {[%emt 0:00:16] Black is clearly winning.} 34. Qg4+ {[%emt 0:00:28]} (34. Rxc1 Qxe3+) 34... Kf8 {[%emt 0:00:02]} 35. Rxc1 {[%emt 0:00:12]} Qxe3+ {[%emt 0:00:01]} 36. Kf1 {[%emt 0:00:01]} Qxc1+ {[%emt 0:00:01]} 37. Kf2 {[%emt 0:00:00]} Qc5+ {[%emt 0:00:10]} (37... e3+ $142 38. Kg3 Qe1+ 39. Kh3 Qc3) 38. Kg3 {[%emt 0:00:05]} f5 {[%emt 0:00:13]} 39. Qh5 {[%emt 0:00:05]} Qe3+ {[%emt 0:00:03] Weighted Error Value: White=1.00/Black=0.19 (very precise) .  Loses game:     	White=1     	---        Mistake:       	White=2     	---        Inaccurate:     	White=1     	---        OK:         	White=7     	Black=9      Best:        	White=1     	Black=3      Strong:       	White=2     	Black=1} 0-1

[Event "CCT Chesscom Classic-D2 2024"]
[Site "Online"]
[Date "2024.05.11"]
[Round "2"]
[White "Hakobyan, Aram"]
[Black "Dubov, Daniil"]
[Result "0-1"]
[ECO "C84"]
[WhiteElo "2617"]
[BlackElo "2707"]
[Annotator "TA"]
[PlyCount "96"]
[EventDate "2024.05.08"]
[EventType "k.o."]
[EventCountry "NET"]
[SourceTitle "playchess.com"]
[Source "ChessBase"]
[SourceQuality "1"]
[TimeControl "600+2"]

{[%evp 20,96,26,21,39,23,37,27,29,11,15,9,20,-31,-26,-25,-29,-20,-27,-33,-16,-22,-17,-27,-25,-27,-14,-110,-22,-115,-52,-60,-60,-68,-84,-76,-54,-91,-84,-77,-84,-141,-118,-240,-252,-270,-258,-416,-412,-547,-535,-573,-562,-564,-552,-664,-654,-677,-672,-677,-558,-567,-572,-579,-581,-668,-704,-705,-700,-700,-681,-1236,-1236,-1225,-1229,-1244,-1229,-1281,-1269]} 1. e4 {[%emt 0:00:03]} e5 {[%emt 0:00:05]} 2. Nf3 {[%emt 0:00:01]} Nc6 {[%emt 0:00:01]} 3. Bb5 {[%emt 0:00:06]} a6 {[%emt 0:00:02]} 4. Ba4 {[%emt 0:00:03]} Nf6 {[%emt 0:00:01]} 5. O-O {[%emt 0:00:02]} Be7 {[%emt 0:00:04]} 6. d3 {[%emt 0:00:02]} b5 {[%emt 0:00:02]} 7. Bb3 {[%emt 0:00:00]} O-O {[%emt 0:00:03]} 8. a4 {[%emt 0:00:11]} Rb8 {[%emt 0:00:02]} 9. axb5 {[%emt 0:00:05]} axb5 {[%emt 0:00:02]} 10. Nc3 {[%emt 0:00:09][%cal Bb1c3,Bc3d5,Bd5e3][%mdl 32]} d6 {[%emt 0:00:10]} 11. h3 {[%emt 0:00:03]} h6 {[%emt 0:00:29]} 12. Bd2 {[%emt 0:00:13]} Re8 {[%emt 0:00:10]} 13. Nd5 {[%emt 0:00:29]} Bf8 {[%emt 0:00:08] White has an edge.} 14. Ne3 {[%emt 0:01:48]} Be6 {[%emt 0:00:22]} 15. Bxe6 {[%emt 0:00:03]} Rxe6 {[%emt 0:00:04]} 16. Ra6 {[%emt 0:00:21]} ({Better is} 16. Nd5 $11) 16... d5 $15 {[%emt 0:00:36]} 17. exd5 {[%emt 0:00:49]} Nxd5 {[%emt 0:00:02]} 18. Re1 {[%emt 0:00:08]} Nxe3 {[%emt 0:01:32]} 19. Bxe3 {[%emt 0:00:10]} Qc8 {[%emt 0:00:38]} 20. Ra1 {[%emt 0:00:10]} Qd7 {[%emt 0:00:09]} 21. Nd2 {[%emt 0:00:37]} Nb4 {[%emt 0:00:34]} 22. Rc1 {[%emt 0:00:54]} Ra8 {[%emt 0:01:02]} 23. Nb3 {[%emt 0:00:13] [#]} (23. Ne4 $11) 23... Qc6 {[%emt 0:00:23]} ({Black should play} 23... Ra2 $1 $17 24. Bc5 Rg6 (24... Rxb2 $2 {perishes.} 25. Bxf8 Rxb3 26. Bxg7 $18)) 24. d4 {[%emt 0:01:56]} (24. c3 $11 Rg6 25. g3) 24... Rd8 {[%emt 0:00:44] Black has more active pieces.} (24... Rg6 $17 {[%csl Gg6][%cal Rc6g2]} 25. g3 e4) 25. c3 {[%emt 0:00:07]} Nd5 {[%emt 0:00:15]} 26. Bd2 {[%emt 0:00:42]} e4 {[%emt 0:00:14]} 27. Na5 {[%emt 0:00:05]} Qd7 {[%emt 0:01:04]} 28. Qg4 {[%emt 0:00:17]} Nf6 {[%emt 0:00:28]} 29. Qe2 {[%emt 0:00:12]} Rde8 {[%emt 0:00:09]} 30. b3 {[%emt 0:00:25]} ({White should try} 30. Nb3) 30... c6 $17 {[%emt 0:00:17]} 31. Be3 {[%emt 0:00:08] White does not recover from this.} (31. b4 $17 {keeps fighting.}) 31... Nd5 $19 {[%emt 0:00:09]} 32. c4 {[%emt 0:00:06]} Nxe3 {[%emt 0:00:08]} 33. Qxe3 {[%emt 0:00:02] [#]} (33. fxe3 {only move.} Bb4 34. Ra1) 33... Bb4 {[%emt 0:00:03][%csl LRa5,LRe1]} 34. d5 {[%emt 0:00:00]} cxd5 {[%emt 0:00:04] Black is clearly winning.} 35. cxd5 {[%emt 0:00:01]} Rd6 {[%emt 0:00:14]} 36. Nc6 {[%emt 0:00:03]} Bxe1 {[%emt 0:00:02]} 37. Rxe1 {[%emt 0:00:02]} Rxd5 {[%emt 0:00:04]} 38. Nb4 {[%emt 0:00:03]} Rd2 {[%emt 0:00:04]} 39. Na6 {[%emt 0:00:14]} Qd4 {[%emt 0:00:16]} 40. Qxd4 {[%emt 0:00:10]} Rxd4 {[%emt 0:00:01][%mdl 4096] Endgame. KRR-KRN} 41. Nc7 {[%emt 0:00:02]} Re5 {[%emt 0:00:06]} 42. Rc1 {[%emt 0:00:02]} b4 {[%emt 0:00:04]} 43. Na6 {[%emt 0:00:02]} e3 {[%emt 0:00:02]} 44. fxe3 {[%emt 0:00:01]} Rxe3 {[%emt 0:00:02]} 45. Rc8+ {[%emt 0:00:02]} Kh7 {[%emt 0:00:01]} 46. Rb8 {[%emt 0:00:01]} Rxb3 {[%emt 0:00:02]} 47. Nc5 {[%emt 0:00:04]} Rc3 {[%emt 0:00:04]} 48. Na4 {[%emt 0:00:04]} Rc2 {[%emt 0:00:01] Weighted Error Value: White=0.43/Black=0.15 (very precise) .  Mistake:       	White=6     	Black=2      Inaccurate:     	White=2     	---        OK:         	White=8     	Black=13     Best:        	---       	Black=5} 0-1